bitfinex-derivatives/quotes_BTCF0:USTF0_20250830
["timestamp","ask_amount","ask_price","bid_price","bid_amount"]
[1756565317340,0.10746328,108790.0,108780.0,2.33002935]
[1756565321442,0.09205367,108790.0,108780.0,2.33002935]
[1756565321743,0.09205367,108790.0,108780.0,2.58002935]
[1756565322143,0.09205367,108790.0,108780.0,0.79262512]
[1756565322443,0.04239186,108790.0,108780.0,2.57910935]
[1756565323843,0.07245273,108790.0,108780.0,2.57910935]
[1756565324142,0.09205367,108790.0,108780.0,2.57910935]
[1756565324342,0.09205367,108790.0,108780.0,0.79262512]
[1756565324540,0.09205367,108790.0,108780.0,2.57986935]
[1756565325242,0.04239186,108790.0,108780.0,2.57986935]
[1756565326243,0.07245273,108790.0,108780.0,2.57986935]
[1756565326431,0.09205367,108790.0,108780.0,2.57986935]
[1756565327538,0.09205367,108790.0,108780.0,0.79262512]
[1756565327844,0.09205367,108790.0,108780.0,2.57942935]
[1756565334442,0.09205367,108790.0,108780.0,1.72586935]
[1756565334647,0.09205367,108790.0,108780.0,2.57834935]
[1756565335751,0.09205367,108790.0,108780.0,1.72586935]
[1756565335946,0.09205367,108790.0,108780.0,2.57802935]
[1756565336649,0.04239186,108790.0,108780.0,2.57802935]
[1756565338151,0.04239186,108790.0,108780.0,2.32802935]
[1756565339751,0.04239186,108790.0,108780.0,1.39478512]
[1756565339952,0.04239186,108790.0,108780.0,2.32802935]
[1756565346456,0.04239186,108790.0,108780.0,2.32666935]
[1756565347158,0.04239186,108790.0,108780.0,1.47586935]
[1756565347361,0.04239186,108790.0,108780.0,2.32706935]
[1756565348560,0.04239186,108790.0,108780.0,1.47586935]
[1756565348762,0.33180094,108790.0,108780.0,1.39382512]
[1756565348965,0.33180094,108790.0,108780.0,2.01598794]
[1756565349264,0.33180094,108790.0,108780.0,2.32706935]
[1756565353166,0.27160094,108790.0,108780.0,2.32706935]
[1756565353366,0.27160094,108790.0,108780.0,1.47586935]
[1756565353574,0.27160094,108790.0,108780.0,2.32662935]
[1756565355974,0.27160094,108790.0,108780.0,1.47586935]
[1756565356278,0.30862094,108790.0,108780.0,2.32726935]
[1756565357379,0.30862094,108790.0,108780.0,2.01518414]
[1756565357578,0.30862094,108790.0,108780.0,2.01486414]
[1756565359180,0.30662094,108790.0,108780.0,2.01486414]
[1756565360181,0.35628275,108790.0,108780.0,2.01486414]
[1756565363988,0.30662094,108790.0,108780.0,2.01486414]
[1756565370486,0.30662094,108790.0,108780.0,2.01274414]
[1756565371295,0.35628275,108790.0,108780.0,2.01274414]
[1756565375095,0.35628275,108790.0,108780.0,1.16378414]
[1756565375295,0.35628275,108790.0,108780.0,2.01206414]
[1756565377297,0.35628275,108790.0,108780.0,2.32263246]
[1756565378495,0.31926275,108790.0,108780.0,2.32263246]
[1756565378690,0.35464275,108790.0,108780.0,2.32263246]
[1756565382004,0.35464275,108790.0,108780.0,1.47435246]
[1756565382195,0.35464275,108790.0,108780.0,2.32203246]
[1756565382396,0.35464275,108790.0,108780.0,1.47435246]
[1756565382595,0.35464275,108790.0,108780.0,2.01129668]
[1756565382800,0.35464275,108790.0,108780.0,2.32187246]
[1756565383499,0.70894905,108790.0,108780.0,0.469494]
[1756565383702,0.70951146,108790.0,108780.0,1.57732556]
[1756565384295,1.02008724,108790.0,108780.0,1.57728556]
[1756565384497,0.70951146,108790.0,108780.0,1.57728556]
[1756565385100,0.70951146,108790.0,108780.0,0.72984556]
[1756565385298,0.70951146,108790.0,108780.0,1.57728556]
[1756565385805,0.70951146,108790.0,108780.0,1.57716556]
[1756565387103,0.70951146,108790.0,108780.0,0.72984556]
[1756565387305,1.02008724,108790.0,108780.0,0.72984556]
[1756565387507,1.02008724,108790.0,108780.0,1.57684556]
[1756565388203,0.70951146,108790.0,108780.0,1.57684556]
[1756565390908,0.77559979,108790.0,108780.0,1.57684556]
[1756565393210,0.77559979,108790.0,108780.0,1.59547116]
[1756565395206,0.77559979,108790.0,108780.0,0.9743196]
[1756565395403,0.77559979,108790.0,108780.0,1.59547116]
[1756565396308,0.70951146,108790.0,108780.0,1.59547116]
[1756565398211,0.70951146,108790.0,108780.0,1.59419116]
[1756565398417,0.75907201,108790.0,108780.0,1.59419116]
[1756565399415,0.50907201,108790.0,108780.0,1.59419116]
[1756565399720,0.14827201,108790.0,108780.0,1.59419116]
[1756565401518,0.14827201,108790.0,108780.0,0.74847116]
[1756565401722,0.14827201,108790.0,108780.0,1.59371116]
[1756565404115,0.16479979,108790.0,108780.0,1.59371116]
[1756565405932,0.16479979,108790.0,108780.0,0.74847116]
[1756565406115,0.16479979,108790.0,108780.0,1.59323116]
[1756565408218,0.09871146,108790.0,108780.0,0.43789538]
[1756565408422,0.45951146,108790.0,108780.0,1.59327116]
[1756565409315,0.45951146,108790.0,108780.0,0.9721196]
[1756565409611,0.45951146,108790.0,108780.0,1.59327116]
[1756565409612,0.5091067,108790.0,108780.0,1.59327116]
[1756565411421,0.5091067,108790.0,108780.0,0.9721196]
[1756565411619,0.5091067,108790.0,108780.0,1.59327116]
[1756565411815,1.08617557,108790.0,108780.0,0.108694]
[1756565412116,1.08617557,108790.0,108780.0,0.41926978]
[1756565412316,1.08617557,108790.0,108780.0,1.26398978]
[1756565415321,1.08617557,108790.0,108780.0,0.41926978]
[1756565415518,1.08617557,108790.0,108780.0,1.26386978]
[1756565415718,1.08617557,108790.0,108780.0,0.41926978]
[1756565415919,1.08617557,108790.0,108780.0,1.26386978]
[1756565417019,1.08617557,108790.0,108780.0,0.41926978]
[1756565417324,1.02008724,108790.0,108780.0,1.26386978]
[1756565417927,0.70951146,108790.0,108780.0,1.26386978]
[1756565418125,0.70951146,108790.0,108780.0,0.953294]
[1756565418324,1.02008724,108790.0,108780.0,1.57444556]
[1756565419522,1.08626374,108790.0,108780.0,1.57444556]
[1756565420528,1.02008724,108790.0,108780.0,1.57444556]
[1756565421230,1.02008724,108790.0,108780.0,0.953294]
[1756565421532,1.02008724,108790.0,108780.0,1.57444556]
[1756565422331,0.70951146,108790.0,108780.0,1.57444556]
[1756565422525,1.02008724,108790.0,108780.0,0.953294]
[1756565422724,1.02008724,108790.0,108780.0,1.57444556]
[1756565423725,1.02008724,108790.0,108780.0,0.953294]
[1756565423930,1.02008724,108790.0,108780.0,1.57444556]
[1756565424135,1.02008724,108790.0,108780.0,0.953294]
[1756565424340,1.02008724,108790.0,108780.0,1.57444556]
[1756565424939,0.70951146,108790.0,108780.0,1.57444556]
[1756565425138,0.49029802,108790.0,108780.0,1.57444556]
[1756565425441,0.42413146,108790.0,108780.0,1.57444556]
[1756565425641,0.45966146,108790.0,108780.0,1.57444556]
[1756565426142,0.52582773,108790.0,108780.0,1.57444556]
[1756565426736,0.49029773,108790.0,108780.0,1.57444556]
[1756565427044,0.52582773,108790.0,108780.0,1.57444556]
[1756565428440,0.16502773,108790.0,108780.0,1.93524556]
[1756565431638,0.09886146,108790.0,108780.0,1.93524556]
[1756565432344,0.07926052,108790.0,108780.0,1.93524556]
[1756565432539,0.04373052,108790.0,108780.0,1.314094]
[1756565432747,0.02070052,108790.0,108780.0,2.18524556]
[1756565433744,0.02070052,108790.0,108780.0,2.25775909]
[1756565434843,0.07971052,108790.0,108780.0,1.314094]
[1756565435042,0.07971052,108790.0,108780.0,1.57444556]
[1756565435248,0.14588127,108790.0,108780.0,0.72984556]
[1756565435443,0.52716903,108790.0,108780.0,0.953294]
[1756565435640,0.83774481,108790.0,108780.0,1.57444556]
[1756565435836,0.77157406,108790.0,108780.0,1.57444556]
[1756565436044,0.46099828,108790.0,108780.0,1.57444556]
[1756565436547,0.77157406,108790.0,108780.0,1.26386978]
[1756565436746,0.7510863,108790.0,108780.0,1.26386978]
[1756565437849,0.44051052,108790.0,108780.0,1.26386978]
[1756565438041,0.7510863,108790.0,108780.0,1.26386978]
[1756565438543,0.44051052,108790.0,108780.0,1.26386978]
[1756565438944,0.7510863,108790.0,108780.0,1.26386978]
[1756565439747,0.3902863,108790.0,108780.0,1.26386978]
[1756565440550,0.3902863,108790.0,108780.0,1.57444556]
[1756565441247,0.04566052,108790.0,108780.0,0.953294]
[1756565441450,0.07971052,108790.0,108780.0,0.953294]
[1756565441749,0.07971052,108790.0,108780.0,1.57444556]
[1756565442248,0.04566052,108790.0,108780.0,1.57444556]
[1756565442749,0.07971052,108790.0,108780.0,1.57444556]
[1756565443551,0.04566052,108790.0,108780.0,1.57444556]
[1756565444149,0.04566052,108790.0,108780.0,1.93524556]
[1756565444450,0.78680772,108800.0,108780.0,1.314094]
[1756565444644,0.81176772,108800.0,108790.0,0.31057578]
[1756565444845,0.74559697,108800.0,108790.0,0.31057578]
[1756565445248,0.74559697,108800.0,108790.0,0.41467978]
[1756565445449,0.38479697,108800.0,108790.0,0.41467978]
[1756565445751,0.38479697,108800.0,108790.0,0.41926978]
[1756565446051,0.38679697,108800.0,108790.0,0.108694]
[1756565446251,0.38679697,108800.0,108790.0,0.41926978]
[1756565446552,0.07622119,108800.0,108790.0,0.41926978]
[1756565446753,0.35274697,108800.0,108790.0,0.41926978]
[1756565446953,0.38679697,108800.0,108790.0,0.41926978]
[1756565447255,0.47343102,108800.0,108790.0,0.41926978]
[1756565448252,0.16285524,108800.0,108790.0,0.41926978]
[1756565448450,0.47343102,108800.0,108790.0,0.41926978]
[1756565451153,0.16285524,108800.0,108790.0,1.26382978]
[1756565451352,0.47343102,108800.0,108790.0,1.26382978]
[1756565451554,0.47343102,108800.0,108790.0,0.953254]
[1756565451748,0.47343102,108800.0,108790.0,1.26382978]
[1756565451949,0.16285524,108800.0,108790.0,1.26382978]
[1756565452148,0.47343102,108800.0,108790.0,1.26382978]
[1756565453154,0.47343102,108800.0,108790.0,0.41926978]
[1756565453362,0.47343102,108800.0,108790.0,1.26382978]
[1756565453959,0.47343102,108800.0,108790.0,0.953254]
[1756565454258,0.47343102,108800.0,108790.0,1.26382978]
[1756565455161,0.47343102,108800.0,108790.0,0.953254]
[1756565455360,0.47343102,108800.0,108790.0,1.26382978]
[1756565455862,0.16285524,108800.0,108790.0,1.26382978]
[1756565456162,0.47343102,108800.0,108790.0,1.26382978]
[1756565457662,0.16285524,108800.0,108790.0,1.26382978]
[1756565457861,0.47343102,108800.0,108790.0,1.26382978]
[1756565459061,0.16285524,108800.0,108790.0,1.26382978]
[1756565459262,0.47343102,108800.0,108790.0,1.26382978]
[1756565459464,0.16285524,108800.0,108790.0,1.26382978]
[1756565459663,0.47343102,108800.0,108790.0,1.26382978]
[1756565461759,0.83423102,108800.0,108790.0,0.108694]
[1756565461964,0.76807941,108800.0,108790.0,1.26374978]
[1756565462361,0.83426857,108800.0,108790.0,1.26374978]
[1756565462658,0.83426857,108800.0,108790.0,0.41926978]
[1756565462864,0.52369279,108800.0,108790.0,1.26374978]
[1756565463063,0.83426857,108800.0,108790.0,1.26374978]
[1756565464967,0.83426857,108800.0,108790.0,0.41926978]
[1756565465167,0.76807941,108800.0,108790.0,1.26374978]
[1756565466465,0.76807941,108800.0,108790.0,0.41926978]
[1756565466667,1.07865519,108800.0,108790.0,0.953174]
[1756565467069,1.07865519,108800.0,108790.0,0.108694]
[1756565467269,1.32865519,108800.0,108790.0,0.953134]
[1756565467670,1.32865519,108800.0,108790.0,0.108694]
[1756565468070,1.41136863,108800.0,108790.0,0.108694]
[1756565468671,2.25580863,108800.0,108790.0,0.108694]
[1756565468974,1.63465707,108800.0,108790.0,0.108694]
[1756565469174,2.25580863,108800.0,108790.0,0.108694]
[1756565471869,2.00580863,108800.0,108790.0,0.108694]
[1756565473168,0.02252,108780.0,108770.0,1.17373238]
[1756565473372,0.8365137,108780.0,108770.0,1.17373238]
[1756565474372,0.8365137,108780.0,108770.0,1.17473238]
[1756565475472,0.8365137,108780.0,108770.0,1.17573238]
[1756565475977,1.08093434,108780.0,108770.0,0.8651566]
[1756565476172,1.14708948,108780.0,108770.0,0.8651566]
[1756565476367,1.50788948,108780.0,108770.0,0.002]
[1756565476575,1.44173434,108780.0,108770.0,0.106104]
[1756565477177,1.52444778,108780.0,108770.0,0.105104]
[1756565477378,1.44173434,108780.0,108770.0,0.105104]
[1756565478384,1.44373434,108780.0,108770.0,0.104104]
[1756565480084,1.50980807,108780.0,108770.0,0.104104]
[1756565482186,1.44373434,108780.0,108770.0,0.104104]
[1756565483289,0.88865651,108780.0,108770.0,0.104104]
[1756565483587,1.50980807,108780.0,108770.0,0.104104]
[1756565483786,1.50980807,108780.0,108770.0,0.41467978]
[1756565484688,1.50980807,108780.0,108770.0,0.104104]
[1756565486774,1.13865651,108780.0,108770.0,0.00572782]
[1756565486979,2.10431012,108780.0,108750.0,0.00078218]
[1756565487182,1.04033156,108760.0,108750.0,0.00078218]
[1756565487476,1.14706095,108760.0,108750.0,0.00078218]
[1756565487681,1.08101733,108760.0,108750.0,0.00078218]
[1756565487879,0.45986577,108760.0,108750.0,0.00078218]
[1756565488074,1.08101733,108760.0,108750.0,0.00078218]
[1756565488274,1.13053463,108760.0,108750.0,0.001]
[1756565488473,1.13053463,108760.0,108750.0,0.31157578]
[1756565488683,1.13053463,108760.0,108750.0,0.31257578]
[1756565488884,1.13053463,108760.0,108750.0,0.001]
[1756565489076,1.13053463,108760.0,108750.0,0.31257578]
[1756565489077,0.81995885,108760.0,108750.0,0.31257578]
[1756565489283,1.13053463,108760.0,108750.0,0.31257578]
[1756565489588,0.50938307,108760.0,108750.0,0.31157578]
[1756565489788,1.13053463,108760.0,108750.0,0.31157578]
[1756565490084,1.13053463,108760.0,108750.0,0.41567978]
[1756565490687,1.13053463,108760.0,108750.0,0.41467978]
[1756565492588,1.08101733,108760.0,108750.0,0.104104]
[1756565492790,1.08101733,108760.0,108750.0,0.41467978]
[1756565493191,1.08101733,108760.0,108750.0,0.104104]
[1756565493390,1.08101733,108760.0,108750.0,0.41467978]
[1756565493893,1.15323518,108760.0,108750.0,0.41467978]
[1756565495083,1.15323518,108760.0,108750.0,0.104104]
[1756565496086,1.51603518,108760.0,108750.0,0.104104]
[1756565498390,1.51603518,108760.0,108750.0,0.41467978]
[1756565500685,1.51603518,108760.0,108750.0,0.104104]
[1756565500895,1.51603518,108760.0,108750.0,0.41467978]
[1756565501497,0.89488362,108760.0,108750.0,0.41467978]
[1756565501690,1.5820788,108760.0,108750.0,0.41467978]
[1756565501991,0.8604788,108760.0,108750.0,0.41467978]
[1756565502196,1.2212788,108760.0,108750.0,0.41467978]
[1756565503796,1.22216154,108760.0,108750.0,0.41467978]
[1756565504296,1.15611792,108760.0,108750.0,0.41467978]
[1756565504497,0.53496636,108760.0,108750.0,0.41467978]
[1756565504796,1.15611792,108760.0,108750.0,0.41467978]
[1756565505599,1.23883136,108760.0,108750.0,0.41467978]
[1756565505795,1.23883136,108760.0,108750.0,0.104104]
[1756565506498,1.23883136,108760.0,108750.0,0.41467978]
[1756565506799,1.23883136,108760.0,108750.0,0.104104]
[1756565507000,1.23883136,108760.0,108750.0,0.41467978]
[1756565508301,1.23883136,108760.0,108750.0,0.104104]
[1756565510195,1.15611792,108760.0,108750.0,0.104104]
[1756565512304,1.23883136,108760.0,108750.0,0.104104]
[1756565515201,1.23883136,108760.0,108750.0,0.05441285]
[1756565515506,0.6176798,108760.0,108750.0,0.05441285]
[1756565515704,1.15611792,108760.0,108750.0,0.05441285]
[1756565516307,1.22231053,108760.0,108750.0,0.05441285]
[1756565516506,0.60115897,108760.0,108750.0,0.05441285]
[1756565516700,1.22231053,108760.0,108750.0,0.36498863]
[1756565519614,0.60115897,108760.0,108750.0,0.36498863]
[1756565520010,1.22231053,108760.0,108750.0,0.36498863]
[1756565520209,0.60115897,108760.0,108750.0,0.05441285]
[1756565520410,1.22231053,108760.0,108750.0,0.36498863]
[1756565520816,1.22231053,108760.0,108750.0,0.05441285]
[1756565521012,1.22231053,108760.0,108750.0,0.36498863]
[1756565521316,1.22231053,108760.0,108750.0,0.05441285]
[1756565521814,1.22231053,108760.0,108750.0,0.36498863]
[1756565522113,1.22278444,108760.0,108750.0,0.36498863]
[1756565524215,1.15659183,108760.0,108750.0,0.05441285]
[1756565524416,1.22278444,108760.0,108750.0,0.05441285]
[1756565525420,1.15659183,108760.0,108750.0,0.05441285]
[1756565526114,1.48930527,108760.0,108750.0,0.01691285]
[1756565526316,1.45344527,108760.0,108740.0,0.86193]
[1756565526522,0.81472922,108750.0,108740.0,0.00089]
[1756565526818,0.83656831,108750.0,108740.0,0.00089]
[1756565529520,0.83656831,108750.0,108740.0,0.104994]
[1756565529725,0.52599253,108750.0,108740.0,0.104994]
[1756565529914,0.83656831,108750.0,108740.0,0.104994]
[1756565530324,0.75385487,108750.0,108740.0,0.104994]
[1756565533326,0.82003593,108750.0,108740.0,0.104994]
[1756565533726,0.75385487,108750.0,108740.0,0.104994]
[1756565534228,0.8200333,108750.0,108740.0,0.104994]
[1756565535428,0.50945457,108750.0,108740.0,0.45757918]
[1756565535622,0.75385487,108750.0,108740.0,0.45757918]
[1756565536130,0.82003035,108750.0,108740.0,0.45757918]
[1756565536630,0.82003035,108750.0,108740.0,0.1470034]
[1756565536831,0.82003035,108750.0,108740.0,0.45757918]
[1756565537628,0.82003035,108750.0,108740.0,0.1470034]
[1756565537830,0.44327909,108750.0,108740.0,0.45757918]
[1756565538030,0.75385487,108750.0,108740.0,0.45757918]
[1756565538729,0.83608627,108750.0,108740.0,0.45757918]
[1756565539133,0.75337283,108750.0,108740.0,0.45757918]
[1756565539831,0.81954281,108750.0,108740.0,0.45757918]
[1756565540026,0.82002485,108750.0,108740.0,0.45757918]
[1756565540526,0.82002485,108750.0,108740.0,0.1470034]
[1756565540732,0.82002485,108750.0,108740.0,0.45757918]
[1756565542731,0.50944907,108750.0,108740.0,0.80123496]
[1756565543032,0.08247909,108750.0,108740.0,1.16203496]
[1756565543434,0.08247909,108750.0,108740.0,1.16114496]
[1756565543824,0.08247909,108750.0,108740.0,1.41114496]
[1756565544023,0.02183909,108750.0,108740.0,1.41114496]
[1756565544226,0.0714599,108750.0,108740.0,1.72172074]
[1756565544424,0.0714599,108750.0,108740.0,1.72261074]
[1756565544630,0.02183909,108750.0,108740.0,1.72261074]
[1756565545737,0.02183909,108750.0,108740.0,1.81556574]
[1756565546637,0.02183909,108750.0,108740.0,1.81656574]
[1756565546838,0.06982414,108760.0,108750.0,0.02922]
[1756565547050,0.02020333,108760.0,108750.0,1.87409156]
[1756565547434,0.02020333,108760.0,108750.0,1.87445114]
[1756565549442,0.02020333,108760.0,108750.0,1.87545114]
[1756565550242,0.02020333,108760.0,108750.0,1.97955514]
[1756565550933,0.02020333,108760.0,108750.0,1.98055514]
[1756565551546,0.02020333,108760.0,108750.0,0.496124]
[1756565551745,0.02020333,108760.0,108750.0,1.98063514]
[1756565552148,0.02020333,108760.0,108750.0,1.359124]
[1756565552446,0.02020333,108760.0,108750.0,1.98063514]
[1756565554038,0.07784333,108760.0,108750.0,1.67007957]
[1756565554234,0.07784333,108760.0,108750.0,0.80687957]
[1756565554438,0.07784333,108760.0,108750.0,1.67063957]
[1756565554646,0.07784333,108760.0,108750.0,0.80687957]
[1756565554836,0.07784333,108760.0,108750.0,1.67063957]
[1756565555545,0.07784333,108760.0,108750.0,1.30983957]
[1756565557647,0.07784333,108760.0,108750.0,1.31007957]
[1756565557947,0.07784333,108760.0,108750.0,0.44607957]
[1756565558150,0.07784333,108760.0,108750.0,1.30979957]
[1756565558947,0.09833312,108760.0,108750.0,1.30979957]
[1756565562952,0.07812979,108760.0,108750.0,1.30979957]
[1756565564152,0.07812979,108760.0,108750.0,1.67059957]
[1756565564452,0.07812979,108760.0,108750.0,1.67148957]
[1756565565654,0.1277506,108760.0,108750.0,1.67148957]
[1756565567151,0.07812979,108760.0,108750.0,0.497014]
[1756565567357,0.1277506,108760.0,108750.0,1.30948341]
[1756565568656,0.43858001,108760.0,108750.0,1.30948341]
[1756565571367,0.43858001,108760.0,108750.0,1.30848341]
[1756565571665,0.43958001,108760.0,108750.0,1.30748341]
[1756565571868,0.1287506,108760.0,108750.0,1.30748341]
[1756565572162,0.04461979,108760.0,108750.0,1.66828341]
[1756565572662,0.09423163,108760.0,108750.0,1.66828341]
[1756565573358,0.04461979,108760.0,108750.0,1.66828341]
[1756565575261,0.04461979,108760.0,108750.0,0.134214]
[1756565575262,0.80040433,108760.0,108750.0,0.134214]
[1756565575464,0.7507592,108760.0,108750.0,1.30788341]
[1756565575668,0.7507592,108760.0,108750.0,0.997054]
[1756565575960,1.06158861,108760.0,108750.0,1.30788341]
[1756565576161,0.7507592,108760.0,108750.0,0.997054]
[1756565576349,0.7507592,108760.0,108750.0,1.30788341]
[1756565577758,1.0007592,108760.0,108750.0,0.44504341]
[1756565577965,1.31158861,108760.0,108750.0,1.30996341]
[1756565579164,1.06158861,108760.0,108750.0,1.30996341]
[1756565579360,0.75083339,108760.0,108750.0,0.999134]
[1756565582561,0.07912979,108760.0,108750.0,1.3100376]
[1756565583360,0.14529977,108760.0,108750.0,1.3100376]
[1756565585064,0.14529977,108760.0,108750.0,0.999134]
[1756565585259,0.50609977,108760.0,108750.0,1.3100376]
[1756565586161,0.50609977,108760.0,108750.0,0.4451176]
[1756565586467,0.50609977,108760.0,108750.0,1.3093176]
[1756565586658,0.50609977,108760.0,108750.0,0.998414]
[1756565586968,0.50609977,108760.0,108750.0,0.998254]
[1756565587156,0.50609977,108760.0,108750.0,1.3091576]
[1756565588658,0.50609977,108760.0,108750.0,0.998254]
[1756565590057,0.50609977,108760.0,108750.0,1.3091576]
[1756565590366,0.46044186,108760.0,108750.0,1.3091576]
[1756565593064,0.77134546,108760.0,108750.0,1.3091576]
[1756565593366,0.83751544,108760.0,108750.0,1.3091576]
[1756565594267,0.52661184,108760.0,108750.0,1.3091576]
[1756565595868,0.52661184,108760.0,108750.0,0.998254]
[1756565596066,0.52661184,108760.0,108750.0,1.3091576]
[1756565599367,0.83747949,108760.0,108750.0,1.30912165]
[1756565599568,0.83747949,108760.0,108750.0,0.998254]
[1756565599867,0.83747949,108760.0,108750.0,1.30912165]
[1756565603367,0.83747949,108760.0,108750.0,0.44508165]
[1756565603763,0.83747949,108760.0,108750.0,1.30572165]
[1756565604768,0.83747949,108760.0,108750.0,1.30540165]
[1756565605269,0.77130951,108760.0,108750.0,1.30532165]
[1756565605472,0.09964186,108760.0,108750.0,1.30532165]
[1756565605664,0.47674654,108760.0,108750.0,1.66612165]
[1756565606967,0.77130951,108760.0,108750.0,0.134214]
[1756565607268,1.14841419,108760.0,108750.0,0.122974]
[1756565607474,1.08217716,108760.0,108750.0,0.987534]
[1756565607671,1.08217716,108760.0,108750.0,1.29840165]
[1756565607969,1.08217716,108760.0,108750.0,0.998774]
[1756565608170,1.08217716,108760.0,108750.0,1.30964165]
[1756565608975,1.08217716,108760.0,108750.0,1.31000165]
[1756565609274,1.08217716,108760.0,108750.0,0.44508165]
[1756565609461,1.08217716,108760.0,108750.0,0.999054]
[1756565609661,1.08217716,108760.0,108750.0,1.30992165]
[1756565609960,1.08217716,108760.0,108750.0,0.999054]
[1756565611374,1.08217716,108760.0,108750.0,0.44508165]
[1756565612169,1.08217716,108760.0,108750.0,1.30944165]
[1756565612473,1.1648906,108760.0,108750.0,1.30944165]
[1756565613175,1.1648906,108760.0,108750.0,0.44508165]
[1756565613364,0.5431553,108760.0,108750.0,1.30944165]
[1756565613570,1.1648906,108760.0,108750.0,1.30944165]
[1756565613767,1.1648906,108760.0,108750.0,1.30928165]
[1756565614577,1.08217716,108760.0,108750.0,1.30928165]
[1756565615575,1.1648906,108760.0,108750.0,1.30928165]
[1756565615772,1.08217716,108760.0,108750.0,1.30928165]
[1756565615972,1.1648906,108760.0,108750.0,0.998414]
[1756565616173,1.08217716,108760.0,108750.0,1.30928165]
[1756565617279,1.08217716,108760.0,108750.0,0.44508165]
[1756565617473,1.08217716,108760.0,108750.0,1.30856165]
[1756565618379,0.46044186,108760.0,108750.0,1.30856165]
[1756565618779,0.77130951,108760.0,108750.0,1.30856165]
[1756565620679,0.77130951,108760.0,108750.0,0.997694]
[1756565620881,0.77130951,108760.0,108750.0,1.30856165]
[1756565621380,0.46044186,108760.0,108750.0,1.30856165]
[1756565621574,0.77130951,108760.0,108750.0,1.30856165]
[1756565622178,0.85402295,108760.0,108750.0,1.30856165]
[1756565623081,0.5431553,108760.0,108750.0,1.30856165]
[1756565623281,0.85402295,108760.0,108750.0,1.30856165]
[1756565623483,0.85402295,108760.0,108750.0,1.25887197]
[1756565623783,0.85402295,108760.0,108750.0,1.25819197]
[1756565623978,1.1648906,108760.0,108750.0,0.94732432]
[1756565624183,1.1648906,108760.0,108750.0,1.25819197]
[1756565624886,0.85402295,108760.0,108750.0,1.25819197]
[1756565626383,0.85402295,108760.0,108750.0,0.94732432]
[1756565626579,0.85402295,108760.0,108750.0,1.25819197]
[1756565627885,0.1823553,108760.0,108750.0,1.25819197]
[1756565628182,0.49322295,108760.0,108750.0,1.25819197]
[1756565629082,0.41050951,108760.0,108750.0,1.25819197]
[1756565629279,0.47671052,108760.0,108750.0,1.25819197]
[1756565629780,0.16584287,108760.0,108750.0,1.25819197]
[1756565629981,0.47671052,108760.0,108750.0,1.25819197]
[1756565630886,0.47671052,108760.0,108750.0,1.81905962]
[1756565630887,0.0876908,108760.0,108750.0,1.81905962]
[1756565631084,0.0876908,108760.0,108750.0,2.17985962]
[1756565631389,0.07111976,108760.0,108750.0,2.17985962]
[1756565633389,0.07111976,108760.0,108750.0,2.17958186]
[1756565634489,0.07011976,108760.0,108750.0,2.17958186]
[1756565634689,0.07011976,108760.0,108750.0,2.18058186]
[1756565635190,0.07011976,108760.0,108750.0,2.18158186]
[1756565635984,0.02048979,108760.0,108750.0,2.18158186]
[1756565636993,0.02048979,108760.0,108750.0,2.27352796]
[1756565638291,0.02048979,108760.0,108750.0,2.28458841]
[1756565638589,0.02048979,108760.0,108750.0,0.69732432]
[1756565638893,0.02048979,108760.0,108750.0,2.18374186]
[1756565639292,0.02048979,108760.0,108750.0,1.93374186]
[1756565644200,0.02048979,108760.0,108750.0,2.27568796]
[1756565645196,0.02048979,108760.0,108750.0,1.41072796]
[1756565645599,0.02048979,108760.0,108750.0,1.31878186]
[1756565645806,0.02048979,108760.0,108750.0,2.18390186]
[1756565650099,0.02048979,108760.0,108750.0,2.54470186]
[1756565655306,0.02048979,108760.0,108750.0,2.54467064]
[1756565656308,0.02048979,108760.0,108750.0,2.63661664]
[1756565658709,0.02048979,108760.0,108750.0,2.54239064]
[1756565659908,0.04962997,108760.0,108750.0,1.82079064]
[1756565660103,0.04962997,108760.0,108750.0,2.54239064]
[1756565660305,0.07011976,108760.0,108750.0,2.63433664]
[1756565660496,0.04962997,108760.0,108750.0,2.63433664]
[1756565660701,0.07011976,108760.0,108750.0,2.63433664]
[1756565660902,0.04962997,108760.0,108750.0,2.63433664]
[1756565661305,0.07011976,108760.0,108750.0,2.63433664]
[1756565661511,0.04962997,108760.0,108750.0,2.63433664]
[1756565661711,0.04962997,108770.0,108750.0,2.8418638]
[1756565661905,0.04962997,108770.0,108760.0,1.29293948]
[1756565662105,0.04962997,108770.0,108760.0,1.31180319]
[1756565663311,0.04962997,108770.0,108760.0,1.31639319]
[1756565664313,0.05062997,108770.0,108760.0,1.31639319]
[1756565665217,0.05062997,108770.0,108760.0,1.38878751]
[1756565665409,0.04962997,108770.0,108760.0,1.39078751]
[1756565666021,0.04962997,108770.0,108760.0,1.39278751]
[1756565666412,0.04962997,108770.0,108760.0,1.48472511]
[1756565666607,0.04962997,108780.0,108760.0,1.48472511]
[1756565666808,0.07330997,108780.0,108770.0,1.84474632]
[1756565667613,0.07330997,108780.0,108770.0,1.92003878]
[1756565667814,0.11029997,108780.0,108770.0,1.92003878]
[1756565668014,0.11029997,108780.0,108770.0,1.05751878]
[1756565668217,0.11029997,108780.0,108770.0,1.92023878]
[1756565669016,0.11029997,108780.0,108770.0,1.05751878]
[1756565669217,0.11029997,108780.0,108770.0,1.92007878]
[1756565669416,0.11029997,108780.0,108770.0,1.05751878]
[1756565669920,0.11029997,108780.0,108770.0,1.92111878]
[1756565670319,0.11029997,108780.0,108770.0,1.9935131]
[1756565672720,0.11029997,108780.0,108770.0,1.1309131]
[1756565672920,0.11029997,108780.0,108770.0,1.9932331]
[1756565673925,0.13192877,108780.0,108770.0,1.9932331]
[1756565674925,0.0822988,108780.0,108770.0,1.9932331]
[1756565675429,0.0822988,108780.0,108770.0,1.9978231]
[1756565678431,0.06067,108780.0,108770.0,1.9978231]
[1756565678631,0.08229814,108780.0,108770.0,1.9978231]
[1756565678832,0.131911,108780.0,108770.0,1.9978231]
[1756565679834,0.094921,108780.0,108770.0,1.9978231]
[1756565680136,0.071241,108780.0,108770.0,1.9978231]
[1756565683435,0.071241,108780.0,108770.0,1.1355031]
[1756565683639,0.129301,108780.0,108770.0,1.9963831]
[1756565683838,0.093751,108780.0,108770.0,1.9963831]
[1756565686948,0.04413814,108780.0,108770.0,1.9963831]
[1756565688250,0.129301,108780.0,108770.0,1.9963831]
[1756565689746,0.129301,108780.0,108770.0,1.9957031]
[1756565690050,0.093751,108780.0,108770.0,1.9957031]
[1756565692649,0.093751,108780.0,108770.0,1.9953031]
[1756565693151,0.129301,108780.0,108770.0,1.1355031]
[1756565693350,0.129301,108780.0,108770.0,1.9951831]
[1756565694552,0.093751,108780.0,108770.0,1.9951831]
[1756565695448,0.071241,108780.0,108770.0,1.9951831]
[1756565702161,0.071241,108780.0,108770.0,1.1355031]
[1756565702354,0.071241,108780.0,108770.0,1.9944231]
[1756565703155,0.05720814,108780.0,108770.0,1.9943831]
[1756565703560,0.05720814,108780.0,108770.0,1.1355031]